[Event "Titled Tuesday Blitz April 18 Early 2023"]
[White "Perez Gormaz, Matias"]
[Black "Samsonkin, Artiom"]
[WhiteFideId "3406342"]
[BlackFideId "13503111"]
[WhiteElo "2362"]
[BlackElo "2524"]
[Result "1-0"]
[Round "10"]
[TimeControl "180+2"]
[Date "2023.04.18"]
[WhiteClock "0:01:19"]
[BlackClock "0:00:03"]

1. e4 {[%clk 0:03:00]}  c5 {[%clk 0:02:58]} 2. Nf3 {[%clk 0:03:01]}  d6 {[%clk 0:02:59]} 3. Bc4 {[%clk 0:03:02]}  Nf6 {[%clk 0:02:58]} 4. d3 {[%clk 0:03:02]}  e6 {[%clk 0:02:56]} 5. c3 {[%clk 0:03:02]}  d5 {[%clk 0:02:53]} 6. Bb5+ {[%clk 0:03:02]}  Bd7 {[%clk 0:02:52]} 7. Bxd7+ {[%clk 0:03:03]}  Nbxd7 {[%clk 0:02:40]} 8. e5 {[%clk 0:03:03]}  Ng4 {[%clk 0:02:40]} 9. d4 {[%clk 0:02:57]}  cxd4 {[%clk 0:02:32]} 10. cxd4 {[%clk 0:02:57]}  Bb4+ {[%clk 0:02:31]} 11. Nc3 {[%clk 0:02:57]}  Rc8 {[%clk 0:02:26]} 12. Bd2 {[%clk 0:02:56]}  Nh6 {[%clk 0:02:19]} 13. O-O {[%clk 0:02:54]}  Nf5 {[%clk 0:02:15]} 14. Ne2 {[%clk 0:02:52]}  Bxd2 {[%clk 0:02:10]} 15. Qxd2 {[%clk 0:02:52]}  O-O {[%clk 0:02:04]} 16. Ng3 {[%clk 0:02:51]}  Nxg3 {[%clk 0:02:03]} 17. fxg3 {[%clk 0:02:52]}  Qb6 {[%clk 0:01:50]} 18. Kh1 {[%clk 0:02:51]}  a5 {[%clk 0:01:39]} 19. Rf2 {[%clk 0:02:48]}  Qb4 {[%clk 0:01:29]} 20. Qe3 {[%clk 0:02:44]}  Nb6 {[%clk 0:01:27]} 21. h4 {[%clk 0:02:44]}  Nc4 {[%clk 0:01:25]} 22. Qe2 {[%clk 0:02:44]}  a4 {[%clk 0:01:20]} 23. Raf1 {[%clk 0:02:42]}  Rc7 {[%clk 0:00:50]} 24. Ng5 {[%clk 0:02:37]}  Qe7 {[%clk 0:00:16]} 25. Qg4 {[%clk 0:02:36]}  Ne3 {[%clk 0:00:12]} 26. Qxe6 {[%clk 0:02:26]}  Nxf1 {[%clk 0:00:04]} 27. Qxe7 {[%clk 0:02:03]}  Nxg3+ {[%clk 0:00:05]} 28. Kh2 {[%clk 0:02:04]}  Rxe7 {[%clk 0:00:05]} 29. Kxg3 {[%clk 0:02:05]}  f6 {[%clk 0:00:06]} 30. Nf3 {[%clk 0:02:05]}  fxe5 {[%clk 0:00:06]} 31. dxe5 {[%clk 0:02:05]}  Rc8 {[%clk 0:00:05]} 32. Rd2 {[%clk 0:02:06]}  Rd7 {[%clk 0:00:05]} 33. Rd4 {[%clk 0:02:06]}  Rc4 {[%clk 0:00:04]} 34. e6 {[%clk 0:01:58]}  Rd8 {[%clk 0:00:02]} 35. e7 {[%clk 0:01:41]}  Re8 {[%clk 0:00:01]} 36. Rxd5 {[%clk 0:01:42]}  Rxe7 {[%clk 0:00:02]} 37. Rd8+ {[%clk 0:01:42]}  Kf7 {[%clk 0:00:03]} 38. Ng5+ {[%clk 0:01:37]}  Kg6 {[%clk 0:00:02]} 39. Rd6+ {[%clk 0:01:35]}  Kf5 {[%clk 0:00:02]} 40. Rd5+ {[%clk 0:01:25]}  Re5 {[%clk 0:00:02]} 41. Rd7 {[%clk 0:01:26]}  Re3+ {[%clk 0:00:02]} 42. Nf3 {[%clk 0:01:19]}  Rg4+ {[%clk 0:00:03]} 43. Kf2 {[%clk 0:01:19]} 1-0


[Site "https://www.chess.com"]

[Event "Titled Tuesday Blitz April 18 Early 2023"]
[White "Skatchkov, Valery"]
[Black "Smirnov, Pavel"]
[WhiteFideId "24195812"]
[BlackFideId "4123425"]
[WhiteElo "2262"]
[BlackElo "2519"]
[Result "0-1"]
[Round "10"]
[TimeControl "180+2"]
[Date "2023.04.18"]
[WhiteClock "0:02:36"]
[BlackClock "0:02:40"]

1. d4 {[%clk 0:02:56]}  Nf6 {[%clk 0:02:59]} 2. c4 {[%clk 0:02:56]}  e6 {[%clk 0:03:00]} 3. Nf3 {[%clk 0:02:57]}  d5 {[%clk 0:02:59]} 4. g3 {[%clk 0:02:56]}  Be7 {[%clk 0:02:59]} 5. Bg2 {[%clk 0:02:56]}  O-O {[%clk 0:02:56]} 6. Nc3 {[%clk 0:02:57]}  c6 {[%clk 0:02:49]} 7. O-O {[%clk 0:02:56]}  Nbd7 {[%clk 0:02:48]} 8. Qd3 {[%clk 0:02:56]}  b6 {[%clk 0:02:47]} 9. e4 {[%clk 0:02:56]}  Ba6 {[%clk 0:02:47]} 10. Nd2 {[%clk 0:02:55]}  dxc4 {[%clk 0:02:43]} 11. Nxc4 {[%clk 0:02:52]}  Ne5 {[%clk 0:02:41]} 12. Nxe5 {[%clk 0:02:35]}  Bxd3 {[%clk 0:02:40]} 13. Nxd3 {[%clk 0:02:36]}  Qxd4 {[%clk 0:02:40]} 0-1


[Site "https://www.chess.com"]

[Event "Titled Tuesday Blitz April 18 Early 2023"]
[White "Szpar, Milosz"]
[Black "wqws"]
[WhiteFideId "1184989"]
[WhiteElo "2436"]
[BlackElo "2606"]
[Result "1/2-1/2"]
[Round "10"]
[TimeControl "180+2"]
[Date "2023.04.18"]
[WhiteClock "0:00:02"]
[BlackClock "0:01:06"]

1. e4 {[%clk 0:03:00]}  c5 {[%clk 0:02:59]} 2. Nf3 {[%clk 0:02:54]}  d6 {[%clk 0:02:58]} 3. Bb5+ {[%clk 0:02:53]}  Nd7 {[%clk 0:02:57]} 4. O-O {[%clk 0:02:50]}  a6 {[%clk 0:02:55]} 5. Bd3 {[%clk 0:02:47]}  Ngf6 {[%clk 0:02:55]} 6. Qe2 {[%clk 0:02:46]}  e5 {[%clk 0:02:53]} 7. c4 {[%clk 0:02:41]}  Be7 {[%clk 0:02:50]} 8. Nc3 {[%clk 0:02:40]}  Nf8 {[%clk 0:02:48]} 9. Bc2 {[%clk 0:02:36]}  Bg4 {[%clk 0:02:46]} 10. Ba4+ {[%clk 0:02:35]}  N6d7 {[%clk 0:02:42]} 11. h3 {[%clk 0:02:27]}  Bh5 {[%clk 0:02:41]} 12. g4 {[%clk 0:02:24]}  Bg6 {[%clk 0:02:42]} 13. Nd5 {[%clk 0:02:24]}  Ne6 {[%clk 0:02:38]} 14. d3 {[%clk 0:02:24]}  h5 {[%clk 0:02:33]} 15. Rb1 {[%clk 0:02:14]}  Rb8 {[%clk 0:02:31]} 16. b4 {[%clk 0:02:10]}  b5 {[%clk 0:02:29]} 17. Bb3 {[%clk 0:02:03]}  hxg4 {[%clk 0:02:20]} 18. hxg4 {[%clk 0:02:02]}  Nf6 {[%clk 0:02:20]} 19. Nxf6+ {[%clk 0:01:55]}  Bxf6 {[%clk 0:02:21]} 20. cxb5 {[%clk 0:01:55]}  Qd7 {[%clk 0:02:12]} 21. bxa6 {[%clk 0:01:27]}  Nf4 {[%clk 0:01:43]} 22. Bxf4 {[%clk 0:01:26]}  exf4 {[%clk 0:01:44]} 23. Nd2 {[%clk 0:01:10]}  Rh3 {[%clk 0:01:35]} 24. a7 {[%clk 0:00:50]}  f3 {[%clk 0:01:31]} 25. axb8=Q+ {[%clk 0:00:49]}  Ke7 {[%clk 0:01:29]} 26. Qxf3 {[%clk 0:00:11]}  Rxf3 {[%clk 0:01:26]} 27. Nxf3 {[%clk 0:00:10]}  Qxg4+ {[%clk 0:01:24]} 28. Kh2 {[%clk 0:00:10]}  Qf4+ {[%clk 0:01:20]} 29. Kg2 {[%clk 0:00:09]}  Qg4+ {[%clk 0:01:19]} 30. Kh2 {[%clk 0:00:08]}  Qf4+ {[%clk 0:01:05]} 31. Kg2 {[%clk 0:00:08]}  Qg4+ {[%clk 0:01:06]} 32. Kh2 {[%clk 0:00:02]} 1/2-1/2


[Site "https://www.chess.com"]

[Event "Titled Tuesday Blitz April 18 Early 2023"]
[White "Eynullayev, Atilla"]
[Black "Harsh Suresh"]
[WhiteFideId "13413570"]
[BlackFideId "45018464"]
[WhiteElo "2181"]
[BlackElo "2227"]
[Result "0-1"]
[Round "10"]
[TimeControl "180+2"]
[Date "2023.04.18"]
[WhiteClock "0:00:06"]
[BlackClock "0:00:06"]

1. d4 {[%clk 0:03:00]}  Nf6 {[%clk 0:02:59]} 2. c4 {[%clk 0:02:57]}  e6 {[%clk 0:02:59]} 3. Nc3 {[%clk 0:02:57]}  Bb4 {[%clk 0:02:57]} 4. e3 {[%clk 0:02:58]}  O-O {[%clk 0:02:57]} 5. Bd3 {[%clk 0:02:58]}  d5 {[%clk 0:02:57]} 6. Nf3 {[%clk 0:02:58]}  Re8 {[%clk 0:02:49]} 7. O-O {[%clk 0:02:57]}  Nc6 {[%clk 0:02:49]} 8. a3 {[%clk 0:02:54]}  dxc4 {[%clk 0:02:48]} 9. Bxc4 {[%clk 0:02:54]}  Bd6 {[%clk 0:02:48]} 10. b4 {[%clk 0:02:42]}  a6 {[%clk 0:02:48]} 11. Rb1 {[%clk 0:02:38]}  e5 {[%clk 0:02:48]} 12. d5 {[%clk 0:02:38]}  Ne7 {[%clk 0:02:45]} 13. Nd2 {[%clk 0:02:35]}  Ng6 {[%clk 0:02:31]} 14. Bd3 {[%clk 0:02:16]}  b6 {[%clk 0:02:04]} 15. Qb3 {[%clk 0:01:49]}  Bb7 {[%clk 0:01:59]} 16. Nde4 {[%clk 0:01:47]}  Nxe4 {[%clk 0:01:54]} 17. Bxe4 {[%clk 0:01:47]}  Bc8 {[%clk 0:01:52]} 18. Qc2 {[%clk 0:01:46]}  Rf8 {[%clk 0:01:46]} 19. Bf5 {[%clk 0:01:45]}  Bxf5 {[%clk 0:01:41]} 20. Qxf5 {[%clk 0:01:46]}  Qc8 {[%clk 0:01:42]} 21. Qxc8 {[%clk 0:01:28]}  Rfxc8 {[%clk 0:01:43]} 22. Ne4 {[%clk 0:01:29]}  f5 {[%clk 0:01:42]} 23. Ng3 {[%clk 0:01:28]}  Ne7 {[%clk 0:01:41]} 24. Bb2 {[%clk 0:01:15]}  e4 {[%clk 0:01:24]} 25. Nh5 {[%clk 0:00:53]}  Nxd5 {[%clk 0:01:15]} 26. Nxg7 {[%clk 0:00:49]}  Ne7 {[%clk 0:01:10]} 27. Rfd1 {[%clk 0:00:46]}  a5 {[%clk 0:01:08]} 28. b5 {[%clk 0:00:45]}  a4 {[%clk 0:01:08]} 29. Ne6 {[%clk 0:00:32]}  Kf7 {[%clk 0:01:08]} 30. Nd4 {[%clk 0:00:29]}  Rd8 {[%clk 0:00:59]} 31. Rbc1 {[%clk 0:00:25]}  Bc5 {[%clk 0:00:54]} 32. Ne2 {[%clk 0:00:23]}  Rxd1+ {[%clk 0:00:41]} 33. Rxd1 {[%clk 0:00:24]}  c6 {[%clk 0:00:36]} 34. bxc6 {[%clk 0:00:22]}  Nxc6 {[%clk 0:00:37]} 35. Rd7+ {[%clk 0:00:22]}  Ke6 {[%clk 0:00:22]} 36. Rxh7 {[%clk 0:00:22]}  Na5 {[%clk 0:00:22]} 37. Nf4+ {[%clk 0:00:22]}  Kd6 {[%clk 0:00:22]} 38. Rh6+ {[%clk 0:00:20]}  Kd7 {[%clk 0:00:22]} 39. Nd5 {[%clk 0:00:15]}  Nc4 {[%clk 0:00:23]} 40. Bc1 {[%clk 0:00:13]}  Ra5 {[%clk 0:00:19]} 41. Kf1 {[%clk 0:00:10]}  Rb5 {[%clk 0:00:19]} 42. Nc3 {[%clk 0:00:10]}  Rb3 {[%clk 0:00:17]} 43. Nxa4 {[%clk 0:00:06]}  Rb1 {[%clk 0:00:18]} 44. Ke2 {[%clk 0:00:03]}  Rxc1 {[%clk 0:00:18]} 45. Rh7+ {[%clk 0:00:02]}  Ke8 {[%clk 0:00:17]} 46. h4 {[%clk 0:00:03]}  Rc2+ {[%clk 0:00:16]} 47. Ke1 {[%clk 0:00:03]}  Bxa3 {[%clk 0:00:15]} 48. g3 {[%clk 0:00:03]}  b5 {[%clk 0:00:12]} 49. h5 {[%clk 0:00:02]}  bxa4 {[%clk 0:00:11]} 50. h6 {[%clk 0:00:02]}  Rc1+ {[%clk 0:00:08]} 51. Ke2 {[%clk 0:00:02]}  Bb2 {[%clk 0:00:09]} 52. Ra7 {[%clk 0:00:02]}  a3 {[%clk 0:00:06]} 53. h7 {[%clk 0:00:03]}  Rh1 {[%clk 0:00:06]} 54. g4 {[%clk 0:00:02]}  fxg4 {[%clk 0:00:06]} 55. Ra4 {[%clk 0:00:03]}  Rxh7 {[%clk 0:00:04]} 56. Rxc4 {[%clk 0:00:04]}  a2 {[%clk 0:00:04]} 57. Rxe4+ {[%clk 0:00:05]}  Re7 {[%clk 0:00:05]} 58. Ra4 {[%clk 0:00:05]}  a1=Q {[%clk 0:00:05]} 59. Rxa1 {[%clk 0:00:06]}  Bxa1 {[%clk 0:00:06]} 0-1


[Site "https://www.chess.com"]

[Event "Titled Tuesday Blitz April 18 Early 2023"]
[White "Gubajdullin, Alexei"]
[Black "Bryant, John Daniel"]
[WhiteFideId "4141202"]
[BlackFideId "2031280"]
[WhiteElo "2279"]
[BlackElo "2455"]
[Result "1-0"]
[Round "10"]
[TimeControl "180+2"]
[Date "2023.04.18"]
[WhiteClock "0:00:52"]
[BlackClock "0:00:03"]

1. c4 {[%clk 0:02:59]}  g6 {[%clk 0:02:58]} 2. Nf3 {[%clk 0:02:57]}  Bg7 {[%clk 0:02:58]} 3. g3 {[%clk 0:02:56]}  Nf6 {[%clk 0:02:53]} 4. Bg2 {[%clk 0:02:55]}  O-O {[%clk 0:02:54]} 5. O-O {[%clk 0:02:56]}  d6 {[%clk 0:02:54]} 6. Nc3 {[%clk 0:02:56]}  Nc6 {[%clk 0:02:54]} 7. d3 {[%clk 0:02:55]}  e5 {[%clk 0:02:53]} 8. Bg5 {[%clk 0:02:55]}  h6 {[%clk 0:02:50]} 9. Bxf6 {[%clk 0:02:55]}  Bxf6 {[%clk 0:02:46]} 10. Rb1 {[%clk 0:02:54]}  a5 {[%clk 0:02:44]} 11. a3 {[%clk 0:02:54]}  Bg7 {[%clk 0:02:42]} 12. b4 {[%clk 0:02:53]}  axb4 {[%clk 0:02:41]} 13. axb4 {[%clk 0:02:53]}  Be6 {[%clk 0:02:40]} 14. b5 {[%clk 0:02:51]}  Ne7 {[%clk 0:02:38]} 15. Nd2 {[%clk 0:02:48]}  c6 {[%clk 0:02:36]} 16. Qb3 {[%clk 0:02:26]}  d5 {[%clk 0:02:11]} 17. Qb4 {[%clk 0:02:26]}  dxc4 {[%clk 0:01:39]} 18. Nxc4 {[%clk 0:02:22]}  Nd5 {[%clk 0:01:38]} 19. Nxd5 {[%clk 0:02:15]}  cxd5 {[%clk 0:01:39]} 20. Ne3 {[%clk 0:01:59]}  Qd7 {[%clk 0:01:29]} 21. b6 {[%clk 0:01:55]}  Rfd8 {[%clk 0:01:11]} 22. Rfc1 {[%clk 0:01:52]}  Bf8 {[%clk 0:00:42]} 23. Qb5 {[%clk 0:01:49]}  Qd6 {[%clk 0:00:16]} 24. Rc7 {[%clk 0:01:45]}  Ra2 {[%clk 0:00:16]} 25. Rxb7 {[%clk 0:01:36]}  Rxe2 {[%clk 0:00:16]} 26. d4 {[%clk 0:01:15]}  Rd2 {[%clk 0:00:15]} 27. dxe5 {[%clk 0:01:14]}  Qc5 {[%clk 0:00:11]} 28. Qxc5 {[%clk 0:01:06]}  Bxc5 {[%clk 0:00:12]} 29. Rc7 {[%clk 0:01:06]}  Bd4 {[%clk 0:00:12]} 30. b7 {[%clk 0:01:05]}  Bxe5 {[%clk 0:00:12]} 31. Rcc1 {[%clk 0:00:58]}  d4 {[%clk 0:00:10]} 32. Nc4 {[%clk 0:00:57]}  Bxc4 {[%clk 0:00:08]} 33. Rxc4 {[%clk 0:00:57]}  Rb8 {[%clk 0:00:07]} 34. Re1 {[%clk 0:00:52]}  Bd6 {[%clk 0:00:03]} 35. Rc6 {[%clk 0:00:52]} 1-0


[Site "https://www.chess.com"]

[Event "Titled Tuesday Blitz April 18 Early 2023"]
[White "Ashraf, Artin"]
[Black "Vaibhav Jayant Raut"]
[WhiteFideId "22514805"]
[BlackFideId "5089034"]
[WhiteElo "2188"]
[BlackElo "2156"]
[Result "0-1"]
[Round "10"]
[TimeControl "180+2"]
[Date "2023.04.18"]
[WhiteClock "0:00:02"]
[BlackClock "0:00:56"]

1. d4 {[%clk 0:03:00]}  Nf6 {[%clk 0:02:57]} 2. Nc3 {[%clk 0:03:01]}  d5 {[%clk 0:02:56]} 3. Bf4 {[%clk 0:03:01]}  e6 {[%clk 0:02:56]} 4. Nb5 {[%clk 0:03:01]}  Na6 {[%clk 0:02:56]} 5. e3 {[%clk 0:03:01]}  c6 {[%clk 0:02:54]} 6. Nc3 {[%clk 0:03:02]}  Nc7 {[%clk 0:02:54]} 7. Nf3 {[%clk 0:03:02]}  Bd6 {[%clk 0:02:54]} 8. Ne5 {[%clk 0:03:02]}  O-O {[%clk 0:02:54]} 9. Bd3 {[%clk 0:03:00]}  c5 {[%clk 0:02:50]} 10. dxc5 {[%clk 0:02:49]}  Bxc5 {[%clk 0:02:48]} 11. Qf3 {[%clk 0:02:49]}  b5 {[%clk 0:02:36]} 12. Qh3 {[%clk 0:02:32]}  h6 {[%clk 0:02:19]} 13. O-O {[%clk 0:01:51]}  b4 {[%clk 0:02:14]} 14. Ne2 {[%clk 0:01:49]}  Ba6 {[%clk 0:02:11]} 15. Rad1 {[%clk 0:01:33]}  Bxd3 {[%clk 0:02:10]} 16. cxd3 {[%clk 0:01:29]}  Nb5 {[%clk 0:02:02]} 17. Rc1 {[%clk 0:00:59]}  Bd6 {[%clk 0:01:59]} 18. d4 {[%clk 0:00:43]}  Rc8 {[%clk 0:01:52]} 19. f3 {[%clk 0:00:20]}  Nd7 {[%clk 0:01:37]} 20. Rxc8 {[%clk 0:00:08]}  Qxc8 {[%clk 0:01:37]} 21. Rc1 {[%clk 0:00:08]}  Qd8 {[%clk 0:01:31]} 22. Qg3 {[%clk 0:00:06]}  Kh7 {[%clk 0:01:04]} 23. Nc6 {[%clk 0:00:05]}  Bxf4 {[%clk 0:01:00]} 24. Qxf4 {[%clk 0:00:04]}  Qb6 {[%clk 0:00:58]} 25. b3 {[%clk 0:00:02]}  Nc3 {[%clk 0:00:56]} 26. Nxc3 {[%clk 0:00:01]}  Qxc6 {[%clk 0:00:56]} 27. Ne2 {[%clk 0:00:01]}  Qa6 {[%clk 0:00:57]} 28. Qg3 {[%clk 0:00:02]}  Qxe2 {[%clk 0:00:56]} 0-1


[Site "https://www.chess.com"]

[Event "Titled Tuesday Blitz April 18 Early 2023"]
[White "Bodnaruk, Anastasia"]
[Black "Samunenkov, Ihor"]
[WhiteFideId "4181751"]
[BlackFideId "14187086"]
[WhiteElo "2310"]
[BlackElo "2457"]
[Result "0-1"]
[Round "10"]
[TimeControl "180+2"]
[Date "2023.04.18"]
[WhiteClock "0:00:05"]
[BlackClock "0:00:18"]

1. e4 {[%clk 0:03:00]}  c5 {[%clk 0:02:59]} 2. Nc3 {[%clk 0:03:00]}  Nc6 {[%clk 0:02:57]} 3. Bb5 {[%clk 0:02:59]}  Nd4 {[%clk 0:02:57]} 4. Bc4 {[%clk 0:03:00]}  e6 {[%clk 0:02:57]} 5. Nge2 {[%clk 0:03:00]}  a6 {[%clk 0:02:57]} 6. a4 {[%clk 0:03:00]}  Nf6 {[%clk 0:02:57]} 7. O-O {[%clk 0:02:58]}  d5 {[%clk 0:02:58]} 8. exd5 {[%clk 0:02:59]}  exd5 {[%clk 0:02:58]} 9. Ba2 {[%clk 0:02:59]}  Ne6 {[%clk 0:02:58]} 10. d4 {[%clk 0:02:54]}  c4 {[%clk 0:02:53]} 11. Ng3 {[%clk 0:02:45]}  Bb4 {[%clk 0:02:46]} 12. Nce2 {[%clk 0:02:43]}  O-O {[%clk 0:02:43]} 13. c3 {[%clk 0:02:43]}  Bd6 {[%clk 0:02:43]} 14. Bb1 {[%clk 0:02:43]}  Re8 {[%clk 0:02:34]} 15. Nf5 {[%clk 0:02:41]}  Bc7 {[%clk 0:02:29]} 16. Neg3 {[%clk 0:02:38]}  Bd7 {[%clk 0:02:22]} 17. Qf3 {[%clk 0:02:35]}  Bc6 {[%clk 0:02:19]} 18. Be3 {[%clk 0:02:30]}  Kh8 {[%clk 0:01:53]} 19. Bc2 {[%clk 0:02:19]}  Ng8 {[%clk 0:01:12]} 20. h4 {[%clk 0:02:12]}  g6 {[%clk 0:01:09]} 21. Rae1 {[%clk 0:01:24]}  gxf5 {[%clk 0:00:56]} 22. Nxf5 {[%clk 0:01:24]}  Qf6 {[%clk 0:00:52]} 23. Qh5 {[%clk 0:01:20]}  Ng7 {[%clk 0:00:41]} 24. Nxg7 {[%clk 0:01:05]}  Qxg7 {[%clk 0:00:42]} 25. Bg5 {[%clk 0:01:05]}  Rxe1 {[%clk 0:00:36]} 26. Rxe1 {[%clk 0:01:05]}  Re8 {[%clk 0:00:37]} 27. Rxe8 {[%clk 0:00:56]}  Bxe8 {[%clk 0:00:37]} 28. Be3 {[%clk 0:00:57]}  Nf6 {[%clk 0:00:36]} 29. Qf5 {[%clk 0:00:51]}  Bd7 {[%clk 0:00:33]} 30. Qg5 {[%clk 0:00:46]}  Qxg5 {[%clk 0:00:33]} 31. hxg5 {[%clk 0:00:41]}  Ne4 {[%clk 0:00:33]} 32. f3 {[%clk 0:00:37]}  Ng3 {[%clk 0:00:34]} 33. Kf2 {[%clk 0:00:35]}  Bf5 {[%clk 0:00:33]} 34. Bd1 {[%clk 0:00:34]}  h5 {[%clk 0:00:33]} 35. gxh6 {[%clk 0:00:33]}  Kh7 {[%clk 0:00:29]} 36. Bg5 {[%clk 0:00:30]}  Bd3 {[%clk 0:00:27]} 37. b3 {[%clk 0:00:16]}  Nf5 {[%clk 0:00:24]} 38. g4 {[%clk 0:00:15]}  Nxh6 {[%clk 0:00:23]} 39. b4 {[%clk 0:00:15]}  Kg6 {[%clk 0:00:22]} 40. Bd2 {[%clk 0:00:15]}  Ng8 {[%clk 0:00:20]} 41. f4 {[%clk 0:00:15]}  Nf6 {[%clk 0:00:19]} 42. f5+ {[%clk 0:00:14]}  Kg7 {[%clk 0:00:20]} 43. Ke3 {[%clk 0:00:14]}  Nxg4+ {[%clk 0:00:20]} 44. Bxg4 {[%clk 0:00:13]}  Kf6 {[%clk 0:00:17]} 45. Be1 {[%clk 0:00:13]}  Kg5 {[%clk 0:00:17]} 46. Kf3 {[%clk 0:00:14]}  Be4+ {[%clk 0:00:15]} 47. Ke3 {[%clk 0:00:14]}  Kxg4 {[%clk 0:00:16]} 48. Ke2 {[%clk 0:00:09]}  Kxf5 {[%clk 0:00:16]} 49. Ke3 {[%clk 0:00:09]}  b5 {[%clk 0:00:16]} 50. axb5 {[%clk 0:00:09]}  axb5 {[%clk 0:00:17]} 51. Bh4 {[%clk 0:00:08]}  Kg4 {[%clk 0:00:17]} 52. Bf6 {[%clk 0:00:08]}  Bf4+ {[%clk 0:00:16]} 53. Ke2 {[%clk 0:00:07]}  Bg5 {[%clk 0:00:17]} 54. Be5 {[%clk 0:00:07]}  f5 {[%clk 0:00:17]} 55. Kf1 {[%clk 0:00:06]}  f4 {[%clk 0:00:17]} 56. Bd6 {[%clk 0:00:06]}  f3 {[%clk 0:00:18]} 57. Kf2 {[%clk 0:00:05]}  Bh4+ {[%clk 0:00:18]} 58. Kf1 {[%clk 0:00:05]}  Bd3+ {[%clk 0:00:18]} 0-1


[Site "https://www.chess.com"]

[Event "Titled Tuesday Blitz April 18 Early 2023"]
[White "Krsnik Cohar, Ivan Vihor"]
[Black "Martinez Ramirez, Lennis"]
[WhiteFideId "14520044"]
[BlackFideId "3509079"]
[WhiteElo "2414"]
[BlackElo "2410"]
[Result "0-1"]
[Round "10"]
[TimeControl "180+2"]
[Date "2023.04.18"]
[WhiteClock "0:00:02"]
[BlackClock "0:01:41"]

1. e4 {[%clk 0:03:00]}  c5 {[%clk 0:02:57]} 2. Ne2 {[%clk 0:03:00]}  Nc6 {[%clk 0:02:56]} 3. g3 {[%clk 0:03:00]}  h5 {[%clk 0:02:55]} 4. h4 {[%clk 0:03:00]}  Nf6 {[%clk 0:02:55]} 5. Bg2 {[%clk 0:03:00]}  Ng4 {[%clk 0:02:55]} 6. c3 {[%clk 0:02:59]}  e6 {[%clk 0:02:54]} 7. d4 {[%clk 0:02:59]}  d5 {[%clk 0:02:54]} 8. exd5 {[%clk 0:02:45]}  exd5 {[%clk 0:02:54]} 9. dxc5 {[%clk 0:02:46]}  Bxc5 {[%clk 0:02:54]} 10. O-O {[%clk 0:02:46]}  Be6 {[%clk 0:02:34]} 11. b4 {[%clk 0:02:43]}  Bb6 {[%clk 0:02:34]} 12. Nf4 {[%clk 0:02:41]}  Qf6 {[%clk 0:02:27]} 13. Qe2 {[%clk 0:01:50]}  O-O-O {[%clk 0:02:26]} 14. Nxe6 {[%clk 0:01:50]}  fxe6 {[%clk 0:02:26]} 15. Bg5 {[%clk 0:01:50]}  Qf5 {[%clk 0:02:24]} 16. Bxd8 {[%clk 0:01:49]}  Rxd8 {[%clk 0:02:23]} 17. a4 {[%clk 0:01:22]}  Rf8 {[%clk 0:02:21]} 18. Ra2 {[%clk 0:00:46]}  g5 {[%clk 0:02:18]} 19. a5 {[%clk 0:00:29]}  Bxf2+ {[%clk 0:02:15]} 20. Kh1 {[%clk 0:00:07]}  gxh4 {[%clk 0:02:15]} 21. Nd2 {[%clk 0:00:07]}  hxg3 {[%clk 0:02:14]} 22. Bh3 {[%clk 0:00:04]}  Nce5 {[%clk 0:02:09]} 23. c4 {[%clk 0:00:02]}  Qf4 {[%clk 0:01:42]} 24. a6 {[%clk 0:00:02]}  g2+ {[%clk 0:01:41]} 0-1


[Site "https://www.chess.com"]

[Event "Titled Tuesday Blitz April 18 Early 2023"]
[White "Osinenko, Anton"]
[Black "O`Gorman, Tom"]
[WhiteFideId "4158970"]
[BlackFideId "2508249"]
[WhiteElo "2294"]
[BlackElo "2271"]
[Result "1-0"]
[Round "10"]
[TimeControl "180+2"]
[Date "2023.04.18"]
[WhiteClock "0:01:20"]
[BlackClock "0:00:40"]

1. e4 {[%clk 0:03:00]}  c6 {[%clk 0:02:59]} 2. d4 {[%clk 0:02:59]}  d5 {[%clk 0:03:00]} 3. Nc3 {[%clk 0:03:00]}  dxe4 {[%clk 0:03:00]} 4. Nxe4 {[%clk 0:03:01]}  Nf6 {[%clk 0:03:00]} 5. Ng3 {[%clk 0:03:01]}  h5 {[%clk 0:02:59]} 6. Nf3 {[%clk 0:03:01]}  h4 {[%clk 0:03:00]} 7. Ne2 {[%clk 0:03:00]}  h3 {[%clk 0:02:59]} 8. Qd3 {[%clk 0:02:55]}  Na6 {[%clk 0:02:53]} 9. c3 {[%clk 0:02:55]}  g6 {[%clk 0:02:45]} 10. Nf4 {[%clk 0:02:52]}  Bf5 {[%clk 0:02:44]} 11. Qe2 {[%clk 0:02:44]}  hxg2 {[%clk 0:02:43]} 12. Bxg2 {[%clk 0:02:45]}  Nc7 {[%clk 0:02:43]} 13. Ne5 {[%clk 0:02:42]}  Ncd5 {[%clk 0:02:35]} 14. Nfd3 {[%clk 0:02:38]}  e6 {[%clk 0:02:32]} 15. Bg5 {[%clk 0:02:35]}  Be7 {[%clk 0:02:31]} 16. O-O-O {[%clk 0:02:34]}  Qa5 {[%clk 0:02:29]} 17. a3 {[%clk 0:02:31]}  O-O-O {[%clk 0:01:43]} 18. Bxd5 {[%clk 0:02:10]}  Qxd5 {[%clk 0:01:41]} 19. Nxf7 {[%clk 0:02:05]}  Qa2 {[%clk 0:01:23]} 20. Nxh8 {[%clk 0:01:51]}  Rxh8 {[%clk 0:01:20]} 21. Qe5 {[%clk 0:01:28]}  Rh3 {[%clk 0:00:48]} 22. Bf4 {[%clk 0:01:19]}  Nd5 {[%clk 0:00:40]} 23. Qb8+ {[%clk 0:01:19]}  Kd7 {[%clk 0:00:40]} 24. Ne5# {[%clk 0:01:20]} 1-0


[Site "https://www.chess.com"]

[Event "Titled Tuesday Blitz April 18 Early 2023"]
[White "Grot, Blazej"]
[Black "Brunner, Nicolas"]
[WhiteFideId "21835845"]
[BlackFideId "620246"]
[WhiteElo "1823"]
[BlackElo "2327"]
[Result "1-0"]
[Round "10"]
[TimeControl "180+2"]
[Date "2023.04.18"]
[WhiteClock "0:00:45"]
[BlackClock "0:00:01"]

1. e4 {[%clk 0:03:00]}  e5 {[%clk 0:02:59]} 2. Nf3 {[%clk 0:02:54]}  Nf6 {[%clk 0:03:00]} 3. d4 {[%clk 0:02:51]}  Nxe4 {[%clk 0:02:59]} 4. Bd3 {[%clk 0:02:50]}  d5 {[%clk 0:03:00]} 5. Nxe5 {[%clk 0:02:48]}  Nd7 {[%clk 0:03:00]} 6. Nxd7 {[%clk 0:02:46]}  Bxd7 {[%clk 0:03:00]} 7. O-O {[%clk 0:02:47]}  Bd6 {[%clk 0:02:59]} 8. Qh5 {[%clk 0:02:41]}  Qf6 {[%clk 0:02:34]} 9. Nc3 {[%clk 0:02:28]}  Nxc3 {[%clk 0:02:29]} 10. bxc3 {[%clk 0:02:29]}  O-O-O {[%clk 0:02:28]} 11. Qxd5 {[%clk 0:02:23]}  Bc6 {[%clk 0:01:57]} 12. Qf5+ {[%clk 0:02:21]}  Qxf5 {[%clk 0:01:58]} 13. Bxf5+ {[%clk 0:02:22]}  Kb8 {[%clk 0:01:58]} 14. c4 {[%clk 0:02:14]}  Bb4 {[%clk 0:01:56]} 15. d5 {[%clk 0:02:09]}  Ba4 {[%clk 0:01:55]} 16. Rb1 {[%clk 0:02:06]}  Bc3 {[%clk 0:01:51]} 17. Be3 {[%clk 0:02:06]}  g6 {[%clk 0:01:48]} 18. Bd3 {[%clk 0:02:01]}  f5 {[%clk 0:01:44]} 19. h4 {[%clk 0:01:57]}  Rhe8 {[%clk 0:01:43]} 20. Rfd1 {[%clk 0:01:52]}  Be5 {[%clk 0:01:14]} 21. Rb4 {[%clk 0:01:48]}  Bd7 {[%clk 0:01:10]} 22. c5 {[%clk 0:01:40]}  Bc8 {[%clk 0:01:04]} 23. Ba6 {[%clk 0:01:27]}  Ka8 {[%clk 0:01:03]} 24. Bf1 {[%clk 0:01:23]}  Bf6 {[%clk 0:00:48]} 25. g3 {[%clk 0:01:20]}  Re4 {[%clk 0:00:31]} 26. Rxe4 {[%clk 0:01:15]}  fxe4 {[%clk 0:00:31]} 27. Be2 {[%clk 0:01:15]}  h5 {[%clk 0:00:25]} 28. Kh2 {[%clk 0:01:14]}  Bf5 {[%clk 0:00:23]} 29. Bc4 {[%clk 0:01:13]}  a6 {[%clk 0:00:15]} 30. Rb1 {[%clk 0:01:09]}  Be5 {[%clk 0:00:14]} 31. Rb4 {[%clk 0:01:05]}  Bg4 {[%clk 0:00:11]} 32. d6 {[%clk 0:01:01]}  cxd6 {[%clk 0:00:11]} 33. Bd5 {[%clk 0:00:58]}  Bc8 {[%clk 0:00:08]} 34. c6 {[%clk 0:00:54]}  Kb8 {[%clk 0:00:02]} 35. Bb6 {[%clk 0:00:53]}  Rf8 {[%clk 0:00:01]} 36. c7+ {[%clk 0:00:45]}  Ka8 {[%clk 0:00:01]} 37. Ra4 {[%clk 0:00:45]} 1-0


[Site "https://www.chess.com"]